{"text_format":"3","workbook":"xlsx","n_sheets":1,"sheets":["Budget mensuel de la famille"],"not_rendered":{"charts":2,"defined_names":2},"read":"whole","date_system":"1900"}

{"sheet":"Budget mensuel de la famille","index":0,"n_rows":68,"n_cols":17,"rows_kept":68,"merged":[[0,1,0,7],[2,1,2,2],[2,6,2,7],[7,19,7,20],[8,6,8,7],[10,16,10,17],[13,19,13,20],[16,16,16,17],[18,1,18,4],[29,1,29,4],[36,1,36,4],[42,1,42,4],[54,1,54,4],[61,1,61,4]]}
[]
[]
[null,"Coût total prévu",null,"Coût total réel","Différence totale",null,"Salaire mensuel prévu"]
[null,null,{"$f":"Housing[[#Totals],[Coût prévu]]+Transportation[[#Totals],[Coût prévu]]+Insurance[[#Totals],[Coût prévu]]+Food[[#Totals],[Coût prévu]]+Children[[#Totals],[Coût prévu]]+Legal[[#Totals],[Coût prévu]]+Savings[[#Totals],[Coût prévu]]+Loans[[#Totals],[Coût prévu]]+Entertainment[[#Totals],[Coût prévu]]+Taxes[[#Totals],[Coût prévu]]+PersonalCare[[#Totals],[Coût prévu]]+Pets[[#Totals],[Coût prévu]]+Gifts[[#Totals],[Coût prévu]]","v":{"v":3941,"d":"€3,941"}},{"$f":"Housing[[#Totals],[Coût réel]]+Transportation[[#Totals],[Coût réel]]+Insurance[[#Totals],[Coût réel]]+Food[[#Totals],[Coût réel]]+Children[[#Totals],[Coût réel]]+Legal[[#Totals],[Coût réel]]+Savings[[#Totals],[Coût réel]]+Loans[[#Totals],[Coût réel]]+Entertainment[[#Totals],[Coût réel]]+Taxes[[#Totals],[Coût réel]]+PersonalCare[[#Totals],[Coût réel]]+Pets[[#Totals],[Coût réel]]+Gifts[[#Totals],[Coût réel]]","v":{"v":4034,"d":"€4,034"}},{"$f":"Housing[[#Totals],[Différence]]+Transportation[[#Totals],[Différence]]+Insurance[[#Totals],[Différence]]+Food[[#Totals],[Différence]]+Children[[#Totals],[Différence]]+Legal[[#Totals],[Différence]]+Savings[[#Totals],[Différence]]+Loans[[#Totals],[Différence]]+Entertainment[[#Totals],[Différence]]+Taxes[[#Totals],[Différence]]+PersonalCare[[#Totals],[Différence]]+Pets[[#Totals],[Différence]]+Gifts[[#Totals],[Différence]]","v":{"v":-93,"d":"(€93)"}},null,"Salaire 1",{"v":1500,"d":"€1,500"}]
[{"$nulls":6},"Salaire 2",{"v":1200,"d":"€1,200"}]
[null,"Habitation","Coût prévu","Coût réel","Différence",null,"Revenus supplémentaires",{"v":300,"d":"€300"}]
[null,"Second emprunt ou loyer",{"v":0,"d":"€0"},{"v":0,"d":"€0"},{"$f":"Housing[Coût prévu]-Housing[Coût réel]","v":{"v":0,"d":"€0"}},null,"Revenus mensuels totaux",{"$f":"SUM(H4:H6)","v":{"v":3000,"d":"€3,000"}}]
[null,"Fournitures",{"v":0,"d":"€0"},{"v":0,"d":"€0"},{"$f":"Housing[Coût prévu]-Housing[Coût réel]","v":{"v":0,"d":"€0"}}]
[null,"Autre",{"v":0,"d":"€0"},{"v":0,"d":"€0"},{"$f":"Housing[Coût prévu]-Housing[Coût réel]","v":{"v":0,"d":"€0"}},null,"Revenus mensuels réels",{"$nulls":3},"  "]
[null,"Eau",{"v":8,"d":"€8"},{"v":8,"d":"€8"},{"$f":"Housing[Coût prévu]-Housing[Coût réel]","v":{"v":0,"d":"€0"}},null,"Salaire 1",{"v":4000,"d":"€4,000"}]
[null,"Ordures ménagères",{"v":10,"d":"€10"},{"v":10,"d":"€10"},{"$f":"Housing[Coût prévu]-Housing[Coût réel]","v":{"v":0,"d":"€0"}},null,"Salaire 2",{"v":1200,"d":"€1,200"}]
[null,"Entretien ou réparations",{"v":23,"d":"€23"},{"v":23,"d":"€23"},{"$f":"Housing[Coût prévu]-Housing[Coût réel]","v":{"v":0,"d":"€0"}},null,"Revenus supplémentaires",{"v":300,"d":"€300"}]
[null,"Gaz",{"v":22,"d":"€22"},{"v":35,"d":"€35"},{"$f":"Housing[Coût prévu]-Housing[Coût réel]","v":{"v":-13,"d":"-€13"}},null,"Revenus mensuels totaux",{"$f":"SUM(H10:H12)","v":{"v":5500,"d":"€5,500"}}]
[null,"Câble",{"v":34,"d":"€34"},{"v":34,"d":"€34"},{"$f":"Housing[Coût prévu]-Housing[Coût réel]","v":{"v":0,"d":"€0"}}]
[null,"Téléphone",{"v":120,"d":"€120"},{"v":120,"d":"€120"},{"$f":"Housing[Coût prévu]-Housing[Coût réel]","v":{"v":0,"d":"€0"}},null,"Solde prévisionnel\n",{"$f":"SUM(H7-C4)","v":{"v":-941,"d":"(€941)"}}]
[null,"Électricité",{"v":44,"d":"€44"},{"v":44,"d":"€44"},{"$f":"Housing[Coût prévu]-Housing[Coût réel]","v":{"v":0,"d":"€0"}},null,"Solde réel",{"$f":"SUM(H13-D4)","v":{"v":1466,"d":"€1,466"}}]
[null,"Emprunt ou loyer",{"v":1100,"d":"€1,100"},{"v":1100,"d":"€1,100"},{"$f":"Housing[Coût prévu]-Housing[Coût réel]","v":{"v":0,"d":"€0"}},null,"Différence",{"$f":"SUM(H16-H15)","v":{"v":2407,"d":"€2,407"}}]
[null,"Total",{"$f":"SUBTOTAL(109,Housing[Coût prévu])","v":{"v":1361,"d":"€1,361"}},{"$f":"SUBTOTAL(109,Housing[Coût réel])","v":{"v":1374,"d":"€1,374"}},{"$f":"SUBTOTAL(109,Housing[Différence])","v":{"v":-13,"d":"(€13)"}}]
[]
[null,"Transport","Coût prévu","Coût réel","Différence",null,"Divertissement","Coût prévu","Coût réel","Différence"]
[null,"Mensualité véhicule 1",{"v":350,"d":"€350"},{"v":350,"d":"€350"},{"$f":"Transportation[Coût prévu]-Transportation[Coût réel]","v":{"v":0,"d":"€0"}},null,"Vidéo/DVD",null,null,{"$f":"Entertainment[Coût prévu]-Entertainment[Coût réel]","v":{"v":0,"d":"€0"}}]
[null,"Mensualité véhicule 2",{"v":200,"d":"€200"},{"v":200,"d":"€200"},{"$f":"Transportation[Coût prévu]-Transportation[Coût réel]","v":{"v":0,"d":"€0"}},null,"CD",null,null,{"$f":"Entertainment[Coût prévu]-Entertainment[Coût réel]","v":{"v":0,"d":"€0"}}]
[null,"Bus/taxi",{"v":100,"d":"€100"},{"v":100,"d":"€100"},{"$f":"Transportation[Coût prévu]-Transportation[Coût réel]","v":{"v":0,"d":"€0"}},null,"Cinéma",{"v":50,"d":"€50"},{"v":50,"d":"€50"},{"$f":"Entertainment[Coût prévu]-Entertainment[Coût réel]","v":{"v":0,"d":"€0"}}]
[null,"Essence",{"v":60,"d":"€60"},{"v":60,"d":"€60"},{"$f":"Transportation[Coût prévu]-Transportation[Coût réel]","v":{"v":0,"d":"€0"}},null,"Concerts",{"v":300,"d":"€300"},{"v":300,"d":"€300"},{"$f":"Entertainment[Coût prévu]-Entertainment[Coût réel]","v":{"v":0,"d":"€0"}},{"$nulls":5},"maison",1300]
[null,"Assurance",{"v":50,"d":"€50"},{"v":50,"d":"€50"},{"$f":"Transportation[Coût prévu]-Transportation[Coût réel]","v":{"v":0,"d":"€0"}},null,"Sport",null,null,{"$f":"Entertainment[Coût prévu]-Entertainment[Coût réel]","v":{"v":0,"d":"€0"}},{"$nulls":5},"transport",800]
[null,"Entretien",{"v":20,"d":"€20"},{"v":0,"d":"€0"},{"$f":"Transportation[Coût prévu]-Transportation[Coût réel]","v":{"v":20,"d":"€20"}},null,"Théâtre",{"v":100,"d":"€100"},{"v":100,"d":"€100"},{"$f":"Entertainment[Coût prévu]-Entertainment[Coût réel]","v":{"v":0,"d":"€0"}},{"$nulls":5},"assurance",500]
[null,"Licences",null,null,{"$f":"Transportation[Coût prévu]-Transportation[Coût réel]","v":{"v":0,"d":"€0"}},null,"Autre",null,null,{"$f":"Entertainment[Coût prévu]-Entertainment[Coût réel]","v":{"v":0,"d":"€0"}},{"$nulls":5},"nourriture",700]
[null,"Autre",null,null,{"$f":"Transportation[Coût prévu]-Transportation[Coût réel]","v":{"v":0,"d":"€0"}},null,"Total",{"$f":"SUBTOTAL(109,Entertainment[Coût prévu])","v":{"v":450,"d":"€450"}},{"$f":"SUBTOTAL(109,Entertainment[Coût réel])","v":{"v":450,"d":"€450"}},{"$f":"SUBTOTAL(109,Entertainment[Différence])","v":{"v":0,"d":"€0"}},{"$nulls":5},"enfants",500]
[null,"Total",{"$f":"SUBTOTAL(109,Transportation[Coût prévu])","v":{"v":780,"d":"€780"}},{"$f":"SUBTOTAL(109,Transportation[Coût réel])","v":{"v":760,"d":"€760"}},{"$f":"SUBTOTAL(109,Transportation[Différence])","v":{"v":20,"d":"€20"}},{"$nulls":10},"diverstissements",500]
[{"$nulls":6},"Cadeaux et dons","Coût prévu","Coût réel","Différence",{"$nulls":5},"cadeaux",400]
[null,"Assurance","Coût prévu","Coût réel","Différence",null,"Oeuvre de charité 1",null,null,{"$f":"Gifts[Coût prévu]-Gifts[Coût réel]","v":{"v":0,"d":"€0"}},{"$nulls":5},"animaux",800]
[null,"Maison",null,null,{"$f":"Insurance[Coût prévu]-Insurance[Coût réel]","v":{"v":0,"d":"€0"}},null,"Oeuvre de charité 2",null,null,{"$f":"Gifts[Coût prévu]-Gifts[Coût réel]","v":{"v":0,"d":"€0"}},{"$nulls":5},"beauté",200]
[null,"Santé",{"v":50,"d":"€50"},{"v":50,"d":"€50"},{"$f":"Insurance[Coût prévu]-Insurance[Coût réel]","v":{"v":0,"d":"€0"}},null,"Oeuvre de charité 3",null,null,{"$f":"Gifts[Coût prévu]-Gifts[Coût réel]","v":{"v":0,"d":"€0"}},{"$nulls":5},"économies",500]
[null,"Vie",null,null,{"$f":"Insurance[Coût prévu]-Insurance[Coût réel]","v":{"v":0,"d":"€0"}},null,"Total",{"$f":"SUBTOTAL(109,Gifts[Coût prévu])","v":{"v":0,"d":"€0"}},{"$f":"SUBTOTAL(109,Gifts[Coût réel])","v":{"v":0,"d":"€0"}},{"$f":"SUBTOTAL(109,Gifts[Différence])","v":{"v":0,"d":"€0"}}]
[null,"Autre",null,null,{"$f":"Insurance[Coût prévu]-Insurance[Coût réel]","v":{"v":0,"d":"€0"}}]
[null,"Total",{"$f":"SUBTOTAL(109,Insurance[Coût prévu])","v":{"v":50,"d":"€50"}},{"$f":"SUBTOTAL(109,Insurance[Coût réel])","v":{"v":50,"d":"€50"}},{"$f":"SUBTOTAL(109,Insurance[Différence])","v":{"v":0,"d":"€0"}},null,"Animaux","Coût prévu","Coût réel","Différence"]
[{"$nulls":6},"Alimentation",null,null,{"$f":"Pets[Coût prévu]-Pets[Coût réel]","v":{"v":0,"d":"€0"}}]
[null,"Alimentation","Coût prévu","Coût réel","Différence",null,"Soins médicaux",null,null,{"$f":"Pets[Coût prévu]-Pets[Coût réel]","v":{"v":0,"d":"€0"}}]
[null,"Courses",{"v":200,"d":"$200"},{"v":300,"d":"$300"},{"$f":"Food[Coût prévu]-Food[Coût réel]","v":{"v":-100,"d":"-$100"}},null,"Toilettage",null,null,{"$f":"Pets[Coût prévu]-Pets[Coût réel]","v":{"v":0,"d":"€0"}}]
[null,"Restaurants",{"v":500,"d":"$500"},{"v":200,"d":"$200"},{"$f":"Food[Coût prévu]-Food[Coût réel]","v":{"v":300,"d":"$300"}},null,"Jouets",null,null,{"$f":"Pets[Coût prévu]-Pets[Coût réel]","v":{"v":0,"d":"€0"}}]
[null,"Autre",null,null,{"$f":"Food[Coût prévu]-Food[Coût réel]","v":{"v":0,"d":"$0"}},null,"Autre",null,null,{"$f":"Pets[Coût prévu]-Pets[Coût réel]","v":{"v":0,"d":"€0"}}]
[null,"Total",{"$f":"SUBTOTAL(109,Food[Coût prévu])","v":{"v":700,"d":"€700"}},{"$f":"SUBTOTAL(109,Food[Coût réel])","v":{"v":500,"d":"€500"}},{"$f":"SUBTOTAL(109,Food[Différence])","v":{"v":200,"d":"€200"}},null,"Total",{"$f":"SUBTOTAL(109,Pets[Coût prévu])","v":{"v":0,"d":"€0"}},{"$f":"SUBTOTAL(109,Pets[Coût réel])","v":{"v":0,"d":"€0"}},{"$f":"SUBTOTAL(109,Pets[Différence])","v":{"v":0,"d":"€0"}}]
[]
[null,"Enfants","Coût prévu","Coût réel","Différence",null,"Soins de la personne","Coût prévu","Coût réel","Différence"]
[null,"Soins médicaux",null,null,{"$f":"Children[Coût prévu]-Children[Coût réel]","v":{"v":0,"d":"€0"}},null,"Soins médicaux",null,null,{"$f":"PersonalCare[Coût prévu]-PersonalCare[Coût réel]","v":{"v":0,"d":"€0"}}]
[null,"Habillement",{"v":200,"d":"€200"},{"v":200,"d":"€200"},{"$f":"Children[Coût prévu]-Children[Coût réel]","v":{"v":0,"d":"€0"}},null,"Coiffeur/manucure",null,null,{"$f":"PersonalCare[Coût prévu]-PersonalCare[Coût réel]","v":{"v":0,"d":"€0"}}]
[null,"Frais de scolarité",null,null,{"$f":"Children[Coût prévu]-Children[Coût réel]","v":{"v":0,"d":"€0"}},null,"Habillement",{"v":100,"d":"€100"},{"v":400,"d":"€400"},{"$f":"PersonalCare[Coût prévu]-PersonalCare[Coût réel]","v":{"v":-300,"d":"-€300"}}]
[null,"Fournitures scolaires",{"v":200,"d":"€200"},{"v":200,"d":"€200"},{"$f":"Children[Coût prévu]-Children[Coût réel]","v":{"v":0,"d":"€0"}},null,"Pressing",null,null,{"$f":"PersonalCare[Coût prévu]-PersonalCare[Coût réel]","v":{"v":0,"d":"€0"}}]
[null,"Cotisations ou frais d'organisation",null,null,{"$f":"Children[Coût prévu]-Children[Coût réel]","v":{"v":0,"d":"€0"}},null,"Club de sport",null,null,{"$f":"PersonalCare[Coût prévu]-PersonalCare[Coût réel]","v":{"v":0,"d":"€0"}}]
[null,"Déjeuner",{"v":100,"d":"€100"},{"v":100,"d":"€100"},{"$f":"Children[Coût prévu]-Children[Coût réel]","v":{"v":0,"d":"€0"}},null,"Commissions/Prélèvements de l'organisation",null,null,{"$f":"PersonalCare[Coût prévu]-PersonalCare[Coût réel]","v":{"v":0,"d":"€0"}}]
[null,"Garderie",null,null,{"$f":"Children[Coût prévu]-Children[Coût réel]","v":{"v":0,"d":"€0"}},null,"Autre",null,null,{"$f":"PersonalCare[Coût prévu]-PersonalCare[Coût réel]","v":{"v":0,"d":"€0"}}]
[null,"Jouets/jeux",null,null,{"$f":"Children[Coût prévu]-Children[Coût réel]","v":{"v":0,"d":"€0"}},null,"Total",{"$f":"SUBTOTAL(109,PersonalCare[Coût prévu])","v":{"v":100,"d":"€100"}},{"$f":"SUBTOTAL(109,PersonalCare[Coût réel])","v":{"v":400,"d":"€400"}},{"$f":"SUBTOTAL(109,PersonalCare[Différence])","v":{"v":-300,"d":"(€300)"}}]
[null,"Autre",null,null,{"$f":"Children[Coût prévu]-Children[Coût réel]","v":{"v":0,"d":"€0"}}]
[null,"Total",{"$f":"SUBTOTAL(109,Children[Coût prévu])","v":{"v":500,"d":"€500"}},{"$f":"SUBTOTAL(109,Children[Coût réel])","v":{"v":500,"d":"€500"}},{"$f":"SUBTOTAL(109,Children[Différence])","v":{"v":0,"d":"€0"}},null,"Prêts","Coût prévu","Coût réel","Différence"]
[{"$nulls":6},"Personnel",null,null,{"$f":"Loans[Coût prévu]-Loans[Coût réel]","v":{"v":0,"d":"€0"}}]
[null,"Juridique","Coût prévu","Coût réel","Différence",null,"Étudiant",null,null,{"$f":"Loans[Coût prévu]-Loans[Coût réel]","v":{"v":0,"d":"€0"}}]
[null,"Avocat",null,null,{"$f":"Legal[Coût prévu]-Legal[Coût réel]","v":{"v":0,"d":"€0"}},null,"Carte de crédit",null,null,{"$f":"Loans[Coût prévu]-Loans[Coût réel]","v":{"v":0,"d":"€0"}}]
[null,"Pension alimentaire",null,null,{"$f":"Legal[Coût prévu]-Legal[Coût réel]","v":{"v":0,"d":"€0"}},null,"Carte de crédit",null,null,{"$f":"Loans[Coût prévu]-Loans[Coût réel]","v":{"v":0,"d":"€0"}}]
[null,"Paiements",null,null,{"$f":"Legal[Coût prévu]-Legal[Coût réel]","v":{"v":0,"d":"€0"}},null,"Carte de crédit",null,null,{"$f":"Loans[Coût prévu]-Loans[Coût réel]","v":{"v":0,"d":"€0"}}]
[null,"Autre",null,null,{"$f":"Legal[Coût prévu]-Legal[Coût réel]","v":{"v":0,"d":"€0"}},null,"Autre",null,null,{"$f":"Loans[Coût prévu]-Loans[Coût réel]","v":{"v":0,"d":"€0"}}]
[null,"Total",{"$f":"SUBTOTAL(109,Legal[Coût prévu])","v":{"v":0,"d":"€0"}},{"$f":"SUBTOTAL(109,Legal[Coût réel])","v":{"v":0,"d":"€0"}},{"$f":"SUBTOTAL(109,Legal[Différence])","v":{"v":0,"d":"€0"}},null,"Total",{"$f":"SUBTOTAL(109,Loans[Coût prévu])","v":{"v":0,"d":"€0"}},{"$f":"SUBTOTAL(109,Loans[Coût réel])","v":{"v":0,"d":"€0"}},{"$f":"SUBTOTAL(109,Loans[Différence])","v":{"v":0,"d":"€0"}}]
[]
[null,"Épargne/Investissements","Coût prévu","Coût réel","Différence",null,"Impôts","Coût prévu","Coût réel","Différence"]
[null,"Retraite",null,null,{"$f":"Savings[Coût prévu]-Savings[Coût réel]","v":{"v":0,"d":"€0"}},null,"Revenu",null,null,{"$f":"Taxes[Coût prévu]-Taxes[Coût réel]","v":{"v":0,"d":"€0"}}]
[null,"Investissement",null,null,{"$f":"Savings[Coût prévu]-Savings[Coût réel]","v":{"v":0,"d":"€0"}},null,"Fonciers",null,null,{"$f":"Taxes[Coût prévu]-Taxes[Coût réel]","v":{"v":0,"d":"€0"}}]
[null,"Études",null,null,{"$f":"Savings[Coût prévu]-Savings[Coût réel]","v":{"v":0,"d":"€0"}},null,"Locaux",null,null,{"$f":"Taxes[Coût prévu]-Taxes[Coût réel]","v":{"v":0,"d":"€0"}}]
[null,"Autre",null,null,{"$f":"Savings[Coût prévu]-Savings[Coût réel]","v":{"v":0,"d":"€0"}},null,"Autre",null,null,{"$f":"Taxes[Coût prévu]-Taxes[Coût réel]","v":{"v":0,"d":"€0"}}]
[null,"Total",{"$f":"SUBTOTAL(109,Savings[Coût prévu])","v":{"v":0,"d":"€0"}},{"$f":"SUBTOTAL(109,Savings[Coût réel])","v":{"v":0,"d":"€0"}},{"$f":"SUBTOTAL(109,Savings[Différence])","v":{"v":0,"d":"€0"}},null,"Total",{"$f":"SUBTOTAL(109,Taxes[Coût prévu])","v":{"v":0,"d":"€0"}},{"$f":"SUBTOTAL(109,Taxes[Coût réel])","v":{"v":0,"d":"€0"}},{"$f":"SUBTOTAL(109,Taxes[Différence])","v":{"v":0,"d":"€0"}}]